[Event "29th CRO-chT Junior 2020"]
[Site "Cakovec"]
[Date "2020.07.18"]
[Round "10.2"]
[White "Sundac, Ivano"]
[Black "Dumancic, Simun"]
[Result "1/2-1/2"]
[ECO "B25"]
[WhiteElo "1408"]
[BlackElo "1896"]
[Annotator "NA RC"]
[PlyCount "96"]
[EventDate "2020.07.14"]
[EventType "team-tourn"]
[EventCountry "CRO"]
[SourceTitle "playchess.com"]
[Source "ChessBase"]
[SourceQuality "1"]
[TimeControl "5400+30"]

{[%evp 8,92,0,0,32767,3,32767,32767,0,-28,32767,32767,-9,-9,-23,-60,0,0,12,8,27,-46,0,0,-5,-42,0,-12,-30,-16,10,2,49,46,45,34,38,44,55,6,16,-2,0,32767,32767,32767,32767,32767,-29,32767,-52,32767,32767,32767,32767,32767,32767,32767,0,-48,-104,-33,-35,-8,0,0,0,0,7,4,14,7,14,9,12,0,14,7,0,0,9,21,9,0,7,0,151]} 1. e4 {[%emt 0:00:30]} c5 {[%emt 0:00:30]} 2. Nc3 {[%emt 0:00:00]} Nc6 {[%emt 0:00:30]} 3. g3 {[%emt 0:01:00]} g6 {[%emt 0:00:30]} 4. Bg2 {[%emt 0:00:30]} Bg7 {[%emt 0:00:30]} 5. Nge2 {[%emt 0:00:30]} e6 {[%emt 0:03:30]} 6. O-O {[%emt 0:01:30]} Nge7 {[%emt 0:00:30]} 7. d3 {[%emt 0:01:30]} O-O {[%emt 0:00:30]} 8. f4 {[%emt 0:01:30]} d6 {[%emt 0:02:30]} 9. Be3 {[%emt 0:07:30] The main line 9.Be3 scores better than 9.g4.} Nd4 {[%emt 0:09:30]} 10. g4 {[%emt 0:04:30]} f5 {[%emt 0:11:30] B25: Closed Sicilian: 3 g3, lines without early Be3.} 11. g5 {[%emt 0:04:30]} Nec6 {[%emt 0:03:30]} (11... e5 $15) 12. Ng3 {[%emt 0:06:30]} e5 {[%emt 0:12:30]} 13. Nd5 {[%emt 0:02:30] [#]} Ne7 $146 {[%emt 0:05:30]} ({Predecessor:} 13... exf4 14. Nxf4 Ne7 15. c3 Ndc6 16. exf5 Nxf5 17. Bd5+ Kh8 18. Nxg6+ hxg6 19. Qg4 Nh6 {1-0 (33) Haussernot,C (2186)-Fraser,J (1934) Hastings 2015}) 14. Bxd4 {[%emt 0:14:30]} (14. Qd2 $14) 14... cxd4 {[%emt 0:06:30]} 15. Nxe7+ {[%emt 0:04:30]} Qxe7 {[%emt 0:00:30]} 16. exf5 {[%emt 0:03:30]} Bxf5 {[%emt 0:07:30]} 17. Qe2 {[%emt 0:07:30]} Rae8 {[%emt 0:01:30]} 18. Rae1 {[%emt 0:00:30]} Qd7 {[%emt 0:01:30]} 19. Nxf5 {[%emt 0:03:30]} gxf5 {[%emt 0:02:30]} 20. Bd5+ {[%emt 0:00:30]} Kh8 {[%emt 0:00:30]} 21. Qg2 {[%emt 0:01:30]} exf4 {[%emt 0:04:30]} 22. Rxe8 {[%emt 0:00:30]} Qxe8 {[%emt 0:00:30]} 23. Rxf4 {[%emt 0:00:30]} Qe3+ {[%emt 0:01:30] Double Attack} 24. Qf2 {[%emt 0:00:30]} Be5 {[%emt 0:01:30]} 25. Qxe3 {[%emt 0:02:30]} dxe3 {[%emt 0:00:30]} 26. Rf3 {[%emt 0:00:30]} Bxb2 {[%emt 0:01:30]} 27. Kf1 {[%emt 0:00:30]} f4 {[%emt 0:00:30]} 28. h4 {[%emt 0:01:30]} b6 {[%emt 0:01:30]} 29. a4 {[%emt 0:01:30]} Kg7 {[%emt 0:00:30]} 30. h5 {[%emt 0:02:30]} h6 {[%emt 0:02:19]} 31. g6 {[%emt 0:01:30]} Be5 {[%emt 0:00:49]} 32. Bf7 {[%emt 0:00:30] [#]} Rc8 {[%emt 0:02:50]} (32... d5 $1 $17 {[%cal Rd5d4][%mdl 512]} 33. Bxd5 Rf5) 33. Bb3 {[%emt 0:00:30] [#]} d5 $1 {[%emt 0:04:01]} 34. d4 $1 {[%emt 0:00:30]} Bb8 {[%emt 0:00:20]} 35. Ke2 {[%emt 0:01:30]} Kf6 {[%emt 0:00:47]} 36. Kd3 {[%emt 0:00:00]} Re8 {[%emt 0:00:50]} 37. Ke2 {[%emt 0:00:00]} Rd8 {[%emt 0:00:21]} 38. Rf1 {[%emt 0:01:30]} Kf5 {[%emt 0:02:38]} 39. c3 {[%emt 0:01:30]} Kf6 $1 {[%emt 0:00:55]} 40. Rg1 {[%emt 0:01:30]} Kg7 {[%emt 0:00:35]} 41. Rf1 {[%emt 0:00:00]} Bc7 {[%emt 0:01:29]} 42. Kd3 {[%emt 0:00:00]} Rd7 $11 {[%emt 0:01:13]} 43. Ke2 {[%emt 0:00:30]} Kf6 {[%emt 0:00:41]} 44. Rg1 {[%emt 0:00:30]} Kg7 {[%emt 0:01:15]} 45. Rf1 {[%emt 0:00:30]} Bb8 {[%emt 0:01:07]} 46. Kd3 {[%emt 0:00:30]} a5 $16 {[%emt 0:01:33]} 47. Ke2 {[%emt 0:00:00]} Bc7 {[%emt 0:01:37]} 48. Kd3 {[%emt 0:00:00]} Bb8 {[%emt 0:00:55]} 1/2-1/2

[Event "29th CRO-chT Junior 2020"]
[Site "Cakovec"]
[Date "2020.07.18"]
[Round "10.3"]
[White "Sagovac, Kristijan"]
[Black "Tomljanovic, Ivano"]
[Result "1-0"]
[ECO "C53"]
[WhiteElo "1839"]
[BlackElo "1393"]
[Annotator "NA RC"]
[PlyCount "43"]
[EventDate "2020.07.14"]
[EventType "team-tourn"]
[EventCountry "CRO"]
[SourceTitle "playchess.com"]
[Source "ChessBase"]
[SourceQuality "1"]
[TimeControl "5400+30"]

{[%evp 12,43,31,9,32767,32767,32767,32767,19,13,32767,32767,21,6,32767,32767,32767,32767,32767,32767,32767,32767,32767,370,369,381,389,385,385,231,216,1352,29995,970]} 1. e4 {[%emt 0:00:30]} e5 {[%emt 0:00:30]} 2. Nf3 {[%emt 0:00:00]} Nc6 {[%emt 0:00:00]} 3. Bc4 {[%emt 0:00:00]} Bc5 {[%emt 0:00:00]} 4. c3 {[%emt 0:00:00]} d6 {[%emt 0:00:30]} 5. b4 {[%emt 0:00:00]} Bb6 {[%emt 0:00:30]} 6. a4 {[%emt 0:00:30]} a6 {[%emt 0:00:30]} 7. Qb3 {[%emt 0:00:30] C53: Giuoco Piano sidelines.} Qe7 {[%emt 0:00:30]} 8. d3 {[%emt 0:04:30]} h6 {[%emt 0:01:30]} 9. Be3 {[%emt 0:00:30]} Bxe3 {[%emt 0:01:30]} 10. fxe3 {[%emt 0:00:00]} Nf6 {[%emt 0:00:30]} 11. O-O {[%emt 0:01:00]} O-O {[%emt 0:00:00]} 12. Nh4 {[%emt 0:01:30] [#]} Ng4 $146 {[%emt 0:02:00]} ({Predecessor:} 12... Be6 13. Nf5 Bxf5 14. Rxf5 Ng4 15. Rf3 Qh4 16. h3 Qe1+ 17. Rf1 Qxe3+ 18. Kh1 Nf2+ 19. Kh2 Nxd3 20. Rf3 Qxe4 {½-½ (20) Sevenyuk,A (1839)-Biller,H (2035) Bled 2018}) 13. Ng6 {[%emt 0:02:30]} Qg5 {[%emt 0:03:30]} 14. Bxf7+ {[%emt 0:00:30]} Rxf7 {[%emt 0:01:30]} 15. Qxf7+ {[%emt 0:00:30]} Kh7 {[%emt 0:00:30]} 16. Nf8+ {[%emt 0:00:30]} Kh8 {[%emt 0:00:30]} 17. Rf3 {[%emt 0:12:30]} Nxe3 {[%emt 0:06:30]} 18. Rg3 {[%emt 0:00:30]} Ng4 {[%emt 0:00:30]} 19. Na3 {[%emt 0:04:30]} Qf6 {[%emt 0:10:30]} 20. Qe8 {[%emt 0:18:30]} Qf2+ {[%emt 0:05:30]} 21. Kh1 $18 {[%emt 0:00:00]} Qb6 {[%emt 0:04:30]} 22. Nd7+ {[%emt 0:02:00]} (22. Ne6+ $142 Kh7 23. Rxg4 Qg1+ 24. Rxg1 Bxe6 25. Qg6+ {[%mdl 64] Double Attack} Kh8 26. Qxg7#) 1-0

[Event "29th CRO-chT Junior 2020"]
[Site "Cakovec"]
[Date "2020.07.18"]
[Round "10.11"]
[White "Mandaric, Fran"]
[Black "Troselj, Ivan"]
[Result "0-1"]
[ECO "D30"]
[WhiteElo "1671"]
[BlackElo "1857"]
[Annotator "NA RC"]
[PlyCount "114"]
[EventDate "2020.07.14"]
[EventType "team-tourn"]
[EventCountry "CRO"]
[SourceTitle "playchess.com"]
[Source "ChessBase"]
[SourceQuality "1"]
[TimeControl "5400+30"]

{[%evp 19,112,33,28,0,0,8,15,13,23,2,8,0,18,-14,32767,32767,32767,32767,-13,-18,-17,-122,32767,32767,32767,-131,-1,-4,0,0,0,0,0,-34,0,-67,-62,-113,-73,-93,32767,-56,-52,32767,32767,32767,32767,-112,-169,-150,-168,-229,32767,32767,32767,32767,-514,-443,-438,-460,-639,-1162,-1468,-1691,-12839,-1372,-5193,-2075,-29964,-5293,-12841,-5202,-29964,32767,32767,32767,32767,32767,32767,32767,32767,32767,-29975,-29974,-12844,-29960,-29986,-29992,-29993,-29992,-29993,-29996,-29997,-29997,-29998]} 1. e4 {[%emt 0:00:30]} c6 {[%emt 0:00:30]} 2. d4 {[%emt 0:00:00]} d5 {[%emt 0:00:00]} 3. Nc3 {[%emt 0:00:00]} e6 {[%emt 0:02:00]} 4. Nf3 {[%emt 0:02:30]} Nf6 {[%emt 0:00:00]} 5. Bd3 {[%emt 0:01:30]} dxe4 {[%emt 0:02:00]} 6. Nxe4 {[%emt 0:01:30]} Nbd7 {[%emt 0:00:00]} 7. O-O {[%emt 0:01:30]} Be7 {[%emt 0:00:00]} 8. c4 {[%emt 0:01:30]} O-O {[%emt 0:00:30]} 9. b3 {[%emt 0:00:30] D30: Queen's Gambit Declined: Systems without Nc3.} b6 {[%emt 0:00:30]} 10. Bb2 {[%emt 0:07:30]} Bb7 {[%emt 0:01:30] [#]} 11. Ne5 $146 {[%emt 0:10:30]} ({Predecessor:} 11. Qe2 c5 12. Rad1 Qc7 13. dxc5 bxc5 14. Ng3 a5 15. Bb1 Rfe8 16. Ne5 Nxe5 17. Bxe5 Qc6 18. f3 {1-0 (70) Berend,E (2326)-Perez Rodriguez,L (2324) chess.com INT 2020}) 11... c5 {[%emt 0:04:30]} 12. Nxd7 {[%emt 0:04:30]} Qxd7 {[%emt 0:00:30]} 13. d5 $1 {[%emt 0:01:30]} Nxe4 {[%emt 0:02:30]} 14. Bxe4 {[%emt 0:01:30]} f5 {[%emt 0:01:30]} 15. Bf3 {[%emt 0:04:30]} exd5 {[%emt 0:00:30]} 16. Bxd5+ {[%emt 0:03:30]} Bxd5 {[%emt 0:00:00]} 17. Qxd5+ {[%emt 0:00:00]} Qxd5 {[%emt 0:00:00]} 18. cxd5 {[%emt 0:00:00]} Rad8 {[%emt 0:00:30]} 19. Rad1 {[%emt 0:02:30]} Rd7 {[%emt 0:00:30]} 20. f4 {[%emt 0:15:30]} (20. Rd3 $11 {keeps the balance.}) 20... Rfd8 {[%emt 0:01:30]} 21. Rfe1 {[%emt 0:00:30]} Kf7 {[%emt 0:00:30]} 22. Re2 {[%emt 0:02:30]} g6 {[%emt 0:00:30]} (22... Rxd5 $17 23. Rxd5 Rxd5) 23. Red2 $1 {[%emt 0:00:30]} Bf6 {[%emt 0:01:30]} 24. Be5 {[%emt 0:00:30]} Re8 {[%emt 0:01:30]} 25. Re2 {[%emt 0:00:30]} Red8 {[%emt 0:00:30]} 26. d6 {[%emt 0:08:30]} Be7 {[%emt 0:03:30]} 27. Rde1 {[%emt 0:02:30]} (27. Red2 $11 Bf8 28. h3) 27... Bf8 {[%emt 0:00:30]} 28. a4 {[%emt 0:06:30]} a5 {[%emt 0:00:30]} ({Reject} 28... Bxd6 $6 29. Bxd6 Rxd6 30. Re7+ Kf6 31. Rxa7 $11) 29. g3 {[%emt 0:01:30]} h5 {[%emt 0:00:30]} 30. Kg2 {[%emt 0:04:26]} Bxd6 {[%emt 0:00:30]} 31. Bxd6 {[%emt 0:02:08]} Rxd6 {[%emt 0:00:30]} 32. Re7+ {[%emt 0:00:09]} Kf6 {[%emt 0:00:30]} 33. Ra7 {[%emt 0:01:48]} (33. Rb7 $15) 33... Re6 {[%emt 0:00:30]} 34. Rxe6+ {[%emt 0:00:15]} Kxe6 {[%emt 0:00:00]} 35. Rg7 {[%emt 0:01:32]} Kf6 {[%emt 0:00:00]} 36. Rb7 {[%emt 0:00:05]} Rd6 {[%emt 0:00:30]} 37. Kh3 {[%emt 0:00:14]} Ke6 {[%emt 0:03:30]} 38. Kh4 {[%emt 0:00:45]} Kd5 {[%emt 0:00:30]} 39. Kg5 {[%emt 0:01:18]} Kd4 {[%emt 0:00:30]} 40. Rg7 {[%emt 0:01:39]} Kc3 {[%emt 0:00:00]} 41. Rxg6 {[%emt 0:00:11]} Rxg6+ {[%emt 0:00:00]} 42. Kxg6 {[%emt 0:00:06]} Kxb3 {[%emt 0:00:00]} 43. Kxf5 {[%emt 0:01:15]} c4 {[%emt 0:00:00]} 44. Kg6 {[%emt 0:01:16]} c3 {[%emt 0:00:30]} 45. f5 {[%emt 0:01:26]} c2 {[%emt 0:00:00]} 46. f6 {[%emt 0:00:54]} c1=Q {[%emt 0:00:00]} 47. f7 {[%emt 0:00:13]} Qc5 {[%emt 0:00:00]} 48. Kg7 {[%emt 0:00:29]} Qg5+ {[%emt 0:00:00]} 49. Kh8 {[%emt 0:00:26]} Qh6+ {[%emt 0:00:00]} 50. Kg8 {[%emt 0:00:14]} Qg6+ {[%emt 0:00:00]} 51. Kf8 {[%emt 0:00:42]} Kc4 {[%emt 0:00:30]} 52. Ke7 {[%emt 0:00:19]} Qg7 {[%emt 0:00:30]} 53. h3 {[%emt 0:00:37]} Kd5 {[%emt 0:00:00]} 54. g4 {[%emt 0:00:12]} Qe5+ {[%emt 0:00:00]} 55. Kf8 {[%emt 0:00:40]} Ke6 {[%emt 0:00:30]} 56. Kg8 {[%emt 0:00:24]} Qg5+ {[%emt 0:00:30] Double Attack} 57. Kf8 {[%emt 0:00:33]} Qg6 {[%emt 0:00:00]} 0-1

[Event "29th CRO-chT Junior 2020"]
[Site "Cakovec"]
[Date "2020.07.18"]
[Round "10.15"]
[White "Borzan, Matej"]
[Black "Mijic, Karlo"]
[Result "1-0"]
[ECO "E32"]
[WhiteElo "1746"]
[BlackElo "1729"]
[Annotator "NA RC"]
[PlyCount "99"]
[EventDate "2020.07.14"]
[EventType "team-tourn"]
[EventCountry "CRO"]
[SourceTitle "playchess.com"]
[Source "ChessBase"]
[SourceQuality "1"]
[TimeControl "5400+30"]

1. d4 {[%emt 0:00:30]} Nf6 {[%emt 0:00:30]} 2. c4 {[%emt 0:00:00]} e6 {[%emt 0:00:00]} 3. Nc3 {[%emt 0:00:00]} Bb4 {[%emt 0:00:00]} 4. Qc2 {[%emt 0:00:00]} O-O {[%emt 0:00:30]} 5. a3 {[%emt 0:01:00]} Bxc3+ {[%emt 0:00:00]} 6. bxc3 {[%emt 0:00:00]} d5 {[%emt 0:01:00]} 7. Bg5 {[%emt 0:01:00]} c6 {[%emt 0:01:30]} 8. e3 {[%emt 0:00:30]} b6 {[%emt 0:00:30]} 9. cxd5 {[%emt 0:00:00]} cxd5 {[%emt 0:00:30]} 10. Bd3 {[%emt 0:00:00]} h6 {[%emt 0:00:00]} 11. Bh4 {[%emt 0:00:30]} Ba6 {[%emt 0:00:00]} 12. Nf3 {[%emt 0:01:30]} Bxd3 {[%emt 0:00:30]} 13. Qxd3 {[%emt 0:00:00]} Nbd7 {[%emt 0:00:00]} 14. O-O {[%emt 0:02:00]} Qc7 {[%emt 0:00:00]} 15. Rac1 {[%emt 0:02:30]} Rfc8 {[%emt 0:00:30]} 16. Nd2 {[%emt 0:04:30]} Qd6 {[%emt 0:03:30]} 17. c4 {[%emt 0:01:30]} e5 {[%emt 0:03:30]} 18. Bg3 {[%emt 0:01:30]} e4 {[%emt 0:00:30]} 19. Qb3 {[%emt 0:03:30]} Qe6 {[%emt 0:02:30]} 20. cxd5 {[%emt 0:03:30]} Nxd5 {[%emt 0:00:00]} 21. Rc2 {[%emt 0:07:30]} Rxc2 {[%emt 0:03:00]} 22. Qxc2 {[%emt 0:00:30]} N7f6 {[%emt 0:00:30]} 23. Rc1 {[%emt 0:01:30]} Qd7 {[%emt 0:00:30]} 24. Nxe4 {[%emt 0:03:30]} Nxe4 {[%emt 0:06:30]} 25. Qxe4 {[%emt 0:00:30]} Rc8 {[%emt 0:00:00]} 26. Rc2 {[%emt 0:04:30]} Nc3 {[%emt 0:07:00]} 27. Qd3 {[%emt 0:01:30]} Qa4 {[%emt 0:00:00]} 28. h3 {[%emt 0:01:30]} Qxa3 {[%emt 0:00:00]} 29. d5 {[%emt 0:00:30]} b5 {[%emt 0:00:30]} 30. d6 {[%emt 0:00:30]} b4 {[%emt 0:00:00]} 31. Be5 {[%emt 0:02:30]} Qa1+ {[%emt 0:06:00]} 32. Kh2 {[%emt 0:00:30]} Qa5 {[%emt 0:00:30]} 33. Bd4 {[%emt 0:03:30]} Qd5 {[%emt 0:01:30]} 34. Qa6 {[%emt 0:11:30]} Rc6 {[%emt 0:02:30]} 35. Qxa7 {[%emt 0:04:30]} Qxd6+ {[%emt 0:00:00]} 36. g3 {[%emt 0:00:00]} Ra6 {[%emt 0:03:00]} 37. Qb7 {[%emt 0:02:00]} Qg6 {[%emt 0:00:30]} 38. Rb2 {[%emt 0:03:30]} Na2 {[%emt 0:05:30]} 39. Bc5 {[%emt 0:02:30]} Qf6 {[%emt 0:01:30]} 40. Bd4 {[%emt 0:01:30]} Qd6 {[%emt 0:00:30]} 41. Qe4 {[%emt 0:04:30]} Qe6 {[%emt 0:04:30]} 42. Qb7 {[%emt 0:03:30]} Ra3 {[%emt 0:02:30]} 43. h4 {[%emt 0:05:30]} b3 {[%emt 0:02:30]} 44. Qb8+ {[%emt 0:00:30]} Kh7 {[%emt 0:00:30]} 45. Qf8 {[%emt 0:00:30]} f6 {[%emt 0:01:30]} 46. Qxa3 {[%emt 0:00:00]} Nc1 {[%emt 0:00:30]} 47. Qa1 {[%emt 0:00:00]} Nd3 {[%emt 0:00:30]} 48. Qb1 {[%emt 0:00:30]} Qf5 {[%emt 0:00:30]} 49. Rd2 {[%emt 0:00:30]} b2 {[%emt 0:00:30]} 50. Bxb2 {[%emt 0:00:00]} 1-0

[Event "29th CRO-chT Junior 2020"]
[Site "Cakovec"]
[Date "2020.07.18"]
[Round "10.16"]
[White "Jaksic, Josip"]
[Black "Dankos, Mislav"]
[Result "1-0"]
[ECO "C44"]
[WhiteElo "1616"]
[BlackElo "1274"]
[Annotator "NA RC"]
[PlyCount "63"]
[EventDate "2020.07.14"]
[EventType "team-tourn"]
[EventCountry "CRO"]
[SourceTitle "playchess.com"]
[Source "ChessBase"]
[SourceQuality "1"]
[TimeControl "5400+30"]

1. e4 {[%emt 0:00:30]} e5 {[%emt 0:00:30]} 2. Nf3 {[%emt 0:00:00]} Nc6 {[%emt 0:00:00]} 3. d4 {[%emt 0:00:00]} exd4 {[%emt 0:02:00]} 4. Bc4 {[%emt 0:00:30]} Bb4+ {[%emt 0:09:30]} 5. c3 {[%emt 0:01:30]} dxc3 {[%emt 0:00:00]} 6. bxc3 {[%emt 0:00:30]} Be7 {[%emt 0:00:00]} 7. Qd5 {[%emt 0:00:30]} Nh6 {[%emt 0:08:30]} 8. Bxh6 {[%emt 0:00:30]} O-O {[%emt 0:00:30]} 9. Be3 {[%emt 0:01:30]} d6 {[%emt 0:04:30]} 10. Nbd2 {[%emt 0:11:30]} Bf6 {[%emt 0:04:30]} 11. Rc1 {[%emt 0:03:30]} Re8 {[%emt 0:11:30]} 12. Qxf7+ {[%emt 0:02:30]} Kh8 {[%emt 0:00:00]} 13. Qh5 {[%emt 0:10:30]} Ne5 {[%emt 0:02:00]} 14. Nxe5 {[%emt 0:06:30]} Rxe5 {[%emt 0:00:30]} 15. Qe2 {[%emt 0:01:30]} Qe8 {[%emt 0:01:30]} 16. Bf4 {[%emt 0:18:30]} Rh5 {[%emt 0:07:30]} 17. Qf3 {[%emt 0:07:30]} b5 {[%emt 0:10:30]} 18. Be2 {[%emt 0:03:30]} Rc5 {[%emt 0:12:30]} 19. Nb3 {[%emt 0:02:30]} Rxc3 {[%emt 0:19:37]} 20. Rxc3 {[%emt 0:02:30]} Bg4 {[%emt 0:01:03]} 21. Qxg4 {[%emt 0:02:30]} Bxc3+ {[%emt 0:01:06]} 22. Bd2 {[%emt 0:01:30]} Qe5 {[%emt 0:02:05]} 23. O-O {[%emt 0:01:30]} Bxd2 {[%emt 0:00:48]} 24. Nxd2 {[%emt 0:00:30]} Re8 {[%emt 0:00:45]} 25. Qh5 {[%emt 0:00:53]} Qe6 {[%emt 0:00:23]} 26. Bxb5 {[%emt 0:00:40]} Rb8 {[%emt 0:00:16]} 27. Bc4 {[%emt 0:00:14]} Qf6 {[%emt 0:00:26]} 28. Nf3 {[%emt 0:04:04]} Qc3 {[%emt 0:00:36]} 29. Ng5 {[%emt 0:01:08]} h6 {[%emt 0:00:23]} 30. Nf7+ {[%emt 0:01:56]} Kh7 {[%emt 0:00:37]} 31. Qf5+ {[%emt 0:02:02]} g6 {[%emt 0:00:11]} 32. Qd7 {[%emt 0:01:54]} 1-0

[Event "29th CRO-chT Junior 2020"]
[Site "Cakovec"]
[Date "2020.07.19"]
[Round "11"]
[White "Cvitan, Ena"]
[Black "Sundac, Ivano"]
[Result "1-0"]
[ECO "D35"]
[WhiteElo "2258"]
[BlackElo "1408"]
[Annotator "NA RC"]
[PlyCount "75"]
[EventDate "2020.??.??"]
[EventCountry "CRO"]
[SourceTitle "playchess.com"]
[Source "ChessBase"]
[SourceQuality "1"]
[TimeControl "5400+30"]

1. d4 d5 2. c4 e6 3. Nc3 Nf6 4. cxd5 exd5 5. Bg5 Be7 6. e3 c6 7. Bd3 O-O 8. f3 {D35: Queen's Gambit Declined: Exchange Variation.} h6 9. Bh4 Nbd7 10. Nge2 Re8 11. O-O Nf8 12. Qd2 {[#]} b6 $146 ({Predecessor:} 12... Ng6 13. Bf2 Bd6 14. h3 Qc7 15. Rae1 Nh5 16. e4 Nhf4 17. e5 Bb4 18. Nxf4 Nxf4 19. Qxf4 {1-0 (38) Serrer,D (1790)-Ellert,O (1620) Playchess.com INT 2020}) 13. Rac1 Bb7 14. Bf2 Rc8 15. Kh1 c5 16. Bf5 Ne6 17. Nf4 Bd6 18. Bg3 Rb8 19. Bxe6 fxe6 20. Nb5 Ba6 (20... Rc8 $14) 21. Nxd6 Qxd6 22. Nd3 Qe7 $18 23. Bxb8 Rxb8 24. Rfe1 c4 25. Ne5 Qe8 26. b3 b5 27. Qa5 Rb6 28. Rb1 Qb8 29. Rec1 Kh7 30. Kg1 Qf8 31. bxc4 dxc4 32. Nxc4 bxc4 33. Rxb6 axb6 34. Qxa6 Nd5 35. Qxc4 Qa3 36. Re1 Qa5 37. Rd1 b5 38. Qd3+ 1-0

[Event "29th CRO-chT Junior 2020"]
[Site "Cakovec"]
[Date "2020.07.19"]
[Round "11"]
[White "Troselj, Ivan"]
[Black "Borzan, Matej"]
[Result "1-0"]
[ECO "B08"]
[WhiteElo "1857"]
[BlackElo "1746"]
[Annotator "NA RC"]
[PlyCount "81"]
[EventDate "2020.??.??"]
[EventCountry "CRO"]
[SourceTitle "playchess.com"]
[Source "ChessBase"]
[SourceQuality "1"]
[TimeControl "5400+30"]

1. e4 d6 2. d4 Nf6 3. Nc3 g6 4. Nf3 Bg7 5. Be3 O-O 6. Be2 Nbd7 7. O-O e5 8. dxe5 Nxe5 9. Nxe5 dxe5 10. Qxd8 Rxd8 11. Rad1 {B08: Pirc Defence: Classical System.} Be6 12. f3 {[#]} h6 $146 ({Predecessor:} 12... a6 13. Na4 Bf8 14. Nc5 Bxc5 15. Bxc5 Nd7 16. Be3 Nb6 17. Bg5 Rxd1 18. Rxd1 Na4 {0-1 (63) Fox,J (1579)-Gehring,S (1709) Dortmund 2005}) 13. Nb5 Rd7 14. Rxd7 Bxd7 15. Rd1 Bxb5 16. Bxb5 a6 17. Ba4 b6 18. Bc6 Rb8 19. c4 Bf8 20. a3 a5 21. Kf1 g5 22. Ke2 $14 Bd6 23. Rd3 Kf8 24. Rb3 Rd8 25. c5 bxc5 26. Rb5 Ke7 27. Rxa5 Rb8 28. Rb5 Rxb5 29. Bxb5 Kd8 30. Kd3 Nd7 31. a4 Kc8 32. a5 c6 33. Bxc6 Nb8 34. Bb5 Kb7 35. Kc4 Bc7 36. Bxc5 Bxa5 37. g4 Bd2 38. Bf8 Bf4 39. h3 Nc6 40. Bxc6+ Kxc6 41. Bxh6 1-0

[Event "29th CRO-chT Junior 2020"]
[Site "Cakovec"]
[Date "2020.07.19"]
[Round "11"]
[White "Haidinger, Erik"]
[Black "Muha, Miljenko"]
[Result "0-1"]
[ECO "A47"]
[WhiteElo "1767"]
[BlackElo "2310"]
[Annotator "RC"]
[PlyCount "62"]
[EventDate "2020.??.??"]
[EventCountry "CRO"]
[SourceTitle "playchess.com"]
[Source "ChessBase"]
[SourceQuality "1"]
[TimeControl "5400+30"]

1. d4 Nf6 2. Bf4 b6 3. e3 Bb7 4. Nf3 e6 5. Bd3 Be7 6. Nbd2 Nh5 7. Bg3 d6 8. Qe2 h6 9. c3 a6 10. e4 Nd7 11. Rc1 c5 12. a4 O-O 13. O-O Nxg3 14. hxg3 Re8 15. e5 cxd4 16. cxd4 dxe5 17. Nxe5 Nxe5 18. dxe5 Qd7 19. Nc4 Rad8 20. Rfd1 Qxa4 21. Nxb6 Qb4 22. Nc4 Kf8 23. f4 Rd4 24. f5 Bg5 25. fxe6 Rxe6 26. Bf5 Qc5 27. Kh2 Bxc1 28. Bxe6 Bg5 29. Qf2 Rh4+ 30. gxh4 Qxf2 31. hxg5 Qxg2# 0-1

[Event "29th CRO-chT Junior 2020"]
[Site "Cakovec"]
[Date "2020.07.19"]
[Round "11"]
[White "Bedic, Noemi"]
[Black "Baric, Marko"]
[Result "1/2-1/2"]
[ECO "A05"]
[WhiteElo "1712"]
[BlackElo "1831"]
[Annotator "NA RC"]
[PlyCount "72"]
[EventDate "2020.??.??"]
[EventCountry "CRO"]
[SourceTitle "playchess.com"]
[Source "ChessBase"]
[SourceQuality "1"]
[TimeControl "5400+30"]

1. e4 c5 2. Nf3 Nc6 3. g3 g6 4. Bg2 Bg7 5. O-O d6 6. d3 Nf6 7. c3 O-O 8. Re1 Qb6 {A05: Réti Opening: 1 Nf3 Nf6.} 9. Nbd2 Be6 10. Ng5 Bg4 11. f3 Bd7 12. Nc4 Qc7 13. a4 h6 14. Nh3 {[#]} Na5 $146 ({Predecessor:} 14... Be6 15. Ne3 Bxh3 16. Bxh3 a6 17. Nd5 Qd8 18. Nxf6+ exf6 19. f4 b5 20. Be3 b4 {1-0 (38) Haas,G (2300)-Gitzinger,G (1950) Luxembourg 1998}) 15. Nxa5 Qxa5 16. d4 cxd4 17. cxd4 Qb6 18. Kh1 Rac8 19. Nf4 Rc4 20. d5 (20. Nd3 $11) 20... Nh7 (20... Qd4 $11) 21. a5 Qc7 22. Bf1 Rc5 23. a6 bxa6 24. Rxa6 Rc8 25. Be3 Ra5 26. b4 Rxa6 27. Bxa6 Rb8 28. Qb3 Qc3 29. Rb1 Ng5 (29... Qxb3 $16 30. Rxb3 Ba4) 30. Kg2 ({Inferior is} 30. Bxa7 Qxb3 31. Rxb3 Ra8 $15) 30... Ba4 $2 (30... Qc7 $16 {was worth a try.} 31. Qd3 Re8) 31. Qxc3 Bxc3 32. Rc1 Bf6 (32... Bb2 $16 {was worth a try.}) 33. h4 ({Weaker is} 33. Bxa7 Rxb4 34. Nd3 Rb3 $14) 33... Nh7 34. Rc8+ Rxc8 35. Bxc8 Bc3 $14 36. Bxa7 Bxb4 1/2-1/2

[Event "29th CRO-chT Junior 2020"]
[Site "Cakovec"]
[Date "2020.07.19"]
[Round "11"]
[White "Cecic-Sule, Dino"]
[Black "Jaksic, Josip"]
[Result "1-0"]
[ECO "D37"]
[WhiteElo "1695"]
[BlackElo "1616"]
[Annotator "NA RC"]
[PlyCount "81"]
[EventDate "2020.??.??"]
[EventCountry "CRO"]
[SourceTitle "playchess.com"]
[Source "ChessBase"]
[SourceQuality "1"]
[TimeControl "5400+30"]

1. d4 Nf6 2. Nf3 e6 3. c4 d5 4. Nc3 Be7 5. Bf4 O-O 6. e3 b6 7. Rc1 c5 8. Be2 dxc4 9. Bxc4 Ba6 10. Bxa6 Nxa6 11. O-O Nb4 12. Qe2 Nbd5 13. Bg3 Qd7 14. Rfd1 Qb7 15. Nxd5 Nxd5 16. a3 Rac8 17. h3 Rfd8 18. dxc5 Bxc5 19. e4 Nf6 20. Rxd8+ Rxd8 21. b4 Bf8 22. Bh4 Be7 23. Qc4 h6 24. Ne5 g5 25. Nc6 gxh4 26. Nxd8 Bxd8 27. Qc8 Qe7 28. Rd1 Nxe4 29. Qxd8+ Qxd8 30. Rxd8+ Kg7 31. Ra8 Nc3 32. Rxa7 Nd5 33. Rb7 Kf6 34. a4 Nxb4 35. Rxb6 Nd5 36. Rb7 Nc3 37. a5 Ne4 38. a6 Nc5 39. Rb6 Nd7 40. Rd6 Ke7 41. Rxd7+ 1-0

[Event "29th CRO-chT Junior 2020"]
[Site "Cakovec"]
[Date "2020.07.19"]
[Round "11"]
[White "Juric, Ester"]
[Black "Vuk, Sebastijan"]
[Result "1-0"]
[ECO "A52"]
[WhiteElo "1663"]
[BlackElo "1367"]
[Annotator "NA RC"]
[PlyCount "133"]
[EventDate "2020.??.??"]
[EventCountry "CRO"]
[SourceTitle "playchess.com"]
[Source "ChessBase"]
[SourceQuality "1"]
[TimeControl "5400+30"]

1. d4 Nf6 2. c4 e5 3. dxe5 Ng4 4. Nf3 Nc6 5. Nc3 Ngxe5 6. e3 Bb4 7. Bd2 a5 8. a3 Bc5 9. Ne4 Be7 10. Bc3 Nxf3+ 11. Qxf3 O-O 12. Qg3 f6 13. Be2 d6 14. h4 Bf5 15. Nd2 Qd7 16. h5 Rae8 17. h6 Bd8 18. Rh4 Bg6 19. hxg7 Qxg7 20. O-O-O b6 21. f4 Bf5 22. Qxg7+ Kxg7 23. g4 Bd7 24. Rdh1 Rh8 25. e4 h6 26. Bf3 Be7 27. Nf1 Bd8 28. Ng3 Ne7 29. Nh5+ Kf7 30. Nxf6 Ng6 31. Nxd7 Nxh4 32. Bxh8 Nxf3 33. Rxh6 Rxe4 34. Rh7+ Kg8 35. Rh5 Rxc4+ 36. Kd1 Rxf4 37. Bc3 Kf7 38. Rh7+ Ke6 39. Rg7 Rf7 40. Rxf7 Kxf7 41. Ke2 Ng5 42. Nb8 Ne4 43. Be1 Bf6 44. b4 a4 45. Kd3 d5 46. Kc2 Ke6 47. Nc6 Kd6 48. b5 Kc5 49. Nb4 Bg5 50. Na6+ Kd6 51. Bb4+ Nc5 52. Kc3 Bf6+ 53. Kd2 d4 54. Ke2 Bd8 55. Kf3 Bg5 56. Ke2 c6 57. Bxc5+ bxc5 58. b6 Bd8 59. b7 Bc7 60. Nxc7 Kxc7 61. g5 c4 62. g6 c3 63. Kd3 Kxb7 64. g7 Kb6 65. g8=Q Kb5 66. Qc4+ Kb6 67. Kxd4 1-0